[Event "EWIBCC 2019"]
[Site "Monte-Carlo"]
[Date "2019.11.29"]
[Round "5.12"]
[White "Kazarian, Anna-Maja"]
[Black "Reizniece-Ozola, Dana"]
[Result "1-0"]
[ECO "E99"]
[WhiteElo "2109"]
[BlackElo "2305"]
[Annotator "NA"]
[PlyCount "83"]
[EventDate "2019.11.29"]
[EventType "swiss"]
[EventCountry "MNC"]
[SourceTitle "playchess.com"]
[Source "ChessBase"]
[SourceQuality "1"]
[TimeControl "180+2"]

1. Nf3 {[%emt 0:00:00]} Nf6 {[%emt 0:00:00]} 2. c4 {[%emt 0:00:00]} g6 {[%emt 0:00:00]} 3. Nc3 {[%emt 0:00:01]} Bg7 {[%emt 0:00:00]} 4. e4 {[%emt 0:00:01]} d6 {[%emt 0:00:01]} 5. d4 {[%emt 0:00:01]} O-O {[%emt 0:00:01]} 6. Be2 {[%emt 0:00:01]} e5 {[%emt 0:00:01]} 7. O-O {[%emt 0:00:02]} Nc6 {[%emt 0:00:01]} 8. d5 {[%emt 0:00:01]} Ne7 {[%emt 0:00:01]} 9. Ne1 {[%emt 0:00:19]} Nd7 {[%emt 0:00:03]} 10. Be3 {[%emt 0:00:03]} f5 {[%emt 0:00:01]} 11. f3 {[%emt 0:00:01]} Kh8 {[%emt 0:00:13]} 12. b4 {[%emt 0:00:08]} a5 {[%emt 0:00:10]} 13. a3 {[%emt 0:00:03]} b6 {[%emt 0:00:05]} 14. Nd3 {[%emt 0:00:17]} axb4 {[%emt 0:00:25]} 15. axb4 {[%emt 0:00:02]} Rxa1 {[%emt 0:00:01]} 16. Qxa1 {[%emt 0:00:01]} Ng8 {[%emt 0:00:07]} 17. Nb5 {[%emt 0:00:14]} fxe4 {[%emt 0:00:20]} 18. fxe4 {[%emt 0:00:01]} Rxf1+ {[%emt 0:00:04]} 19. Bxf1 {[%emt 0:00:07]} Ndf6 {[%emt 0:00:02]} 20. Nf2 {[%emt 0:00:04]} Bh6 {[%emt 0:00:07]} 21. Bxh6 {[%emt 0:00:09]} Nxh6 {[%emt 0:00:01]} 22. Qa7 {[%emt 0:00:01]} Ne8 {[%emt 0:00:01]} 23. Qb8 {[%emt 0:00:03]} Nf7 {[%emt 0:00:07]} 24. Nd3 {[%emt 0:00:30]} Bd7 {[%emt 0:00:08]} 25. Qxd8 {[%emt 0:00:11]} Nxd8 {[%emt 0:00:01]} 26. Nc3 {[%emt 0:00:02]} Nf6 {[%emt 0:00:08]} 27. c5 {[%emt 0:00:04]} bxc5 {[%emt 0:00:01]} 28. bxc5 {[%emt 0:00:00]} Kg7 {[%emt 0:00:12]} 29. c6 {[%emt 0:00:05]} Bc8 {[%emt 0:00:04]} 30. Nb4 {[%emt 0:00:01]} Kf7 {[%emt 0:00:13]} 31. Ba6 {[%emt 0:00:01]} Bg4 {[%emt 0:00:03]} 32. h3 {[%emt 0:00:01]} Bh5 {[%emt 0:00:23]} 33. g4 {[%emt 0:00:01]} Nxg4 {[%emt 0:00:11]} 34. hxg4 {[%emt 0:00:01]} Bxg4 {[%emt 0:00:01]} 35. Bf1 {[%emt 0:00:12]} Ke7 {[%emt 0:00:07]} 36. Nb5 {[%emt 0:00:03]} Nf7 {[%emt 0:00:03]} 37. Nxc7 {[%emt 0:00:03]} Ng5 {[%emt 0:00:01]} 38. Bg2 {[%emt 0:00:09]} h5 {[%emt 0:00:04]} 39. Nb5 {[%emt 0:00:05]} h4 {[%emt 0:00:03]} 40. c7 {[%emt 0:00:16]} Kd7 {[%emt 0:00:03]} 41. Nc6 {[%emt 0:00:05]} Be2 {[%emt 0:00:04]} 42. Nca7 {[%emt 0:00:24]} 1-0

[Event "EWIBCC 2019"]
[Site "Monte-Carlo"]
[Date "2019.11.29"]
[Round "5.13"]
[White "Kosteniuk, Alexandra"]
[Black "Osmak, Iulija"]
[Result "1-0"]
[ECO "B00"]
[WhiteElo "2483"]
[BlackElo "2401"]
[Annotator "ChessBase"]
[PlyCount "93"]
[EventDate "2019.11.29"]
[EventType "swiss"]
[EventCountry "MNC"]
[SourceTitle "playchess.com"]
[Source "ChessBase"]
[SourceQuality "1"]
[TimeControl "180+2"]

1. e4 {[%emt 0:00:00]} Nc6 {[%emt 0:00:00]} 2. Nf3 {[%emt 0:00:01]} d6 {[%emt 0:00:00]} 3. d4 {[%emt 0:00:04]} Bg4 {[%emt 0:00:00]} 4. d5 {[%emt 0:00:05]} Nb8 {[%emt 0:00:02]} 5. h3 {[%emt 0:00:02]} Bd7 {[%emt 0:00:03]} 6. c4 {[%emt 0:00:04]} c6 {[%emt 0:00:08]} 7. Nc3 {[%emt 0:00:01]} Nf6 {[%emt 0:00:03]} 8. Bd3 {[%emt 0:00:12]} Na6 {[%emt 0:00:19]} 9. Be3 {[%emt 0:00:01]} e5 {[%emt 0:00:09]} 10. O-O {[%emt 0:00:13]} Be7 {[%emt 0:00:01]} 11. Nd2 {[%emt 0:00:02]} O-O {[%emt 0:00:06]} 12. a3 {[%emt 0:00:01]} cxd5 {[%emt 0:00:13]} 13. exd5 {[%emt 0:00:02]} Ne8 {[%emt 0:00:34]} 14. f4 {[%emt 0:00:08]} exf4 {[%emt 0:00:07]} 15. Bxf4 {[%emt 0:00:42]} Qb6+ {[%emt 0:00:01]} 16. Rf2 {[%emt 0:00:09]} Bf6 {[%emt 0:00:12]} 17. Kf1 {[%emt 0:00:26]} Bd4 {[%emt 0:00:14]} 18. Re2 {[%emt 0:00:02]} Nc5 {[%emt 0:00:16]} 19. Nf3 {[%emt 0:00:02]} Bxc3 {[%emt 0:00:12]} 20. bxc3 {[%emt 0:00:01]} Nxd3 {[%emt 0:00:01]} 21. Qxd3 {[%emt 0:00:01]} g6 {[%emt 0:00:09]} 22. Nd4 {[%emt 0:00:03]} Ng7 {[%emt 0:00:03]} 23. Rb1 {[%emt 0:00:15]} Qc7 {[%emt 0:00:01]} 24. Re7 {[%emt 0:00:01]} Rac8 {[%emt 0:00:30]} 25. Nb5 {[%emt 0:00:07]} Qd8 {[%emt 0:00:03]} 26. Rbe1 {[%emt 0:00:19]} Nf5 {[%emt 0:00:03]} 27. R7e4 {[%emt 0:00:07]} Bxb5 28. cxb5 {[%emt 0:00:01]} Qa5 {[%emt 0:00:04]} 29. c4 {[%emt 0:00:00]} Qc7 {[%emt 0:00:03]} 30. g4 {[%emt 0:00:02]} Ng7 {[%emt 0:00:03]} 31. Bh6 {[%emt 0:00:01]} Rfe8 {[%emt 0:00:03]} 32. Qd4 {[%emt 0:00:03]} Re5 {[%emt 0:00:08]} 33. Rxe5 {[%emt 0:00:03]} dxe5 {[%emt 0:00:01]} 34. Rxe5 {[%emt 0:00:01]} Qxc4+ {[%emt 0:00:02]} 35. Qxc4 {[%emt 0:00:01]} Rxc4 {[%emt 0:00:01]} 36. Re7 {[%emt 0:00:01]} Rd4 {[%emt 0:00:11]} 37. Rxb7 {[%emt 0:00:01]} Ne8 {[%emt 0:00:02]} 38. Rb8 {[%emt 0:00:02]} f6 {[%emt 0:00:02]} 39. Rxe8+ {[%emt 0:00:01]} Kf7 {[%emt 0:00:01]} 40. Ra8 {[%emt 0:00:07]} g5 {[%emt 0:00:00]} 41. Rxa7+ {[%emt 0:00:03]} Kg6 {[%emt 0:00:01]} 42. Bf8 {[%emt 0:00:01]} Rxd5 {[%emt 0:00:01]} 43. b6 {[%emt 0:00:03]} Rb5 {[%emt 0:00:01]} 44. b7 {[%emt 0:00:00]} h5 {[%emt 0:00:02]} 45. Bd6 {[%emt 0:00:05]} hxg4 {[%emt 0:00:02]} 46. hxg4 {[%emt 0:00:01]} f5 {[%emt 0:00:01]} 47. b8=Q {[%emt 0:00:02]} 1-0

[Event "EWIBCC 2019"]
[Site "Monte-Carlo"]
[Date "2019.11.29"]
[Round "5.14"]
[White "Rogule, Laura"]
[Black "Dzagnidze, Nana"]
[Result "0-1"]
[ECO "A36"]
[WhiteElo "2293"]
[BlackElo "2502"]
[Annotator "ChessBase"]
[PlyCount "88"]
[EventDate "2019.11.29"]
[EventType "swiss"]
[EventCountry "MNC"]
[SourceTitle "playchess.com"]
[Source "ChessBase"]
[SourceQuality "1"]
[TimeControl "180+2"]

1. c4 {[%emt 0:00:00]} c5 {[%emt 0:00:01]} 2. Nc3 {[%emt 0:00:00]} Nc6 {[%emt 0:00:02]} 3. g3 {[%emt 0:00:01]} g6 {[%emt 0:00:04]} 4. Bg2 {[%emt 0:00:01]} Bg7 {[%emt 0:00:01]} 5. e4 {[%emt 0:00:02]} d6 {[%emt 0:00:03]} 6. Nge2 {[%emt 0:00:01]} Bd7 {[%emt 0:00:24]} 7. d3 {[%emt 0:00:10]} Qc8 {[%emt 0:00:13]} 8. h3 {[%emt 0:00:09]} Nf6 {[%emt 0:00:03]} 9. Be3 {[%emt 0:00:04]} O-O {[%emt 0:00:03]} 10. g4 {[%emt 0:00:20]} Ne8 {[%emt 0:00:23]} 11. Ng3 {[%emt 0:00:21]} Nd4 {[%emt 0:00:11]} 12. Nd5 {[%emt 0:00:29]} Qd8 {[%emt 0:00:01]} 13. Qd2 {[%emt 0:00:04]} Nc7 {[%emt 0:00:02]} 14. O-O {[%emt 0:00:10]} e6 {[%emt 0:00:27]} 15. Nxc7 {[%emt 0:00:25]} Qxc7 {[%emt 0:00:01]} 16. Bh6 {[%emt 0:00:13]} Bc6 {[%emt 0:00:01]} 17. Bxg7 {[%emt 0:00:02]} Kxg7 {[%emt 0:00:01]} 18. Nh5+ {[%emt 0:00:25]} Kh8 {[%emt 0:00:49]} 19. Qh6 {[%emt 0:00:17]} f5 {[%emt 0:00:06]} 20. Nf4 {[%emt 0:00:10]} Qg7 {[%emt 0:00:12]} 21. Qxg7+ {[%emt 0:00:02]} Kxg7 {[%emt 0:00:01]} 22. exf5 {[%emt 0:00:04]} Bxg2 {[%emt 0:00:10]} 23. Kxg2 {[%emt 0:00:02]} gxf5 {[%emt 0:00:02]} 24. g5 {[%emt 0:00:06]} Rae8 {[%emt 0:00:03]} 25. Rfe1 {[%emt 0:00:02]} e5 {[%emt 0:00:03]} 26. Nh5+ {[%emt 0:00:02]} Kg6 {[%emt 0:00:02]} 27. Nf6 {[%emt 0:00:01]} Re6 {[%emt 0:00:02]} 28. h4 {[%emt 0:00:03]} h6 {[%emt 0:00:03]} 29. f4 {[%emt 0:00:03]} exf4 {[%emt 0:00:10]} 30. Rxe6 {[%emt 0:00:01]} Nxe6 {[%emt 0:00:01]} 31. Re1 {[%emt 0:00:01]} Nd4 {[%emt 0:00:09]} 32. Re7 {[%emt 0:00:02]} hxg5 {[%emt 0:00:02]} 33. hxg5 {[%emt 0:00:01]} Rh8 {[%emt 0:00:04]} 34. Nd5 {[%emt 0:00:02]} f3+ {[%emt 0:00:03]} 35. Kg3 {[%emt 0:00:03]} Kxg5 {[%emt 0:00:01]} 36. Rg7+ {[%emt 0:00:01]} Kh6 {[%emt 0:00:01]} 37. Rxb7 {[%emt 0:00:02]} Rg8+ {[%emt 0:00:01]} 38. Kf2 {[%emt 0:00:03]} Rg2+ {[%emt 0:00:01]} 39. Kf1 {[%emt 0:00:01]} Rd2 {[%emt 0:00:04]} 40. Nf4 {[%emt 0:00:03]} Kg5 {[%emt 0:00:03]} 41. Nh3+ {[%emt 0:00:02]} Kg4 {[%emt 0:00:08]} 42. Nf2+ {[%emt 0:00:04]} Kf4 {[%emt 0:00:00]} 43. Rxa7 {[%emt 0:00:11]} Rxb2 {[%emt 0:00:00]} 44. Nh3+ {[%emt 0:00:00]} Kg3 {[%emt 0:00:00]} 0-1

[Event "EWIBCC 2019"]
[Site "Monte-Carlo"]
[Date "2019.11.29"]
[Round "5.15"]
[White "Muzychuk, Mariya"]
[Black "Terbe, Julianna"]
[Result "1-0"]
[ECO "B30"]
[WhiteElo "2552"]
[BlackElo "2287"]
[Annotator "ChessBase"]
[PlyCount "85"]
[EventDate "2019.11.29"]
[EventType "swiss"]
[EventCountry "MNC"]
[SourceTitle "playchess.com"]
[Source "ChessBase"]
[SourceQuality "1"]
[TimeControl "180+2"]

1. e4 {[%emt 0:00:00]} c5 {[%emt 0:00:00]} 2. Nf3 {[%emt 0:00:00]} Nc6 {[%emt 0:00:00]} 3. Bb5 {[%emt 0:00:01]} Qc7 {[%emt 0:00:01]} 4. O-O {[%emt 0:00:07]} a6 {[%emt 0:00:00]} 5. Bxc6 {[%emt 0:00:02]} dxc6 {[%emt 0:00:02]} 6. h3 {[%emt 0:00:12]} e5 {[%emt 0:00:01]} 7. d3 {[%emt 0:00:02]} Ne7 {[%emt 0:00:01]} 8. a4 {[%emt 0:00:03]} a5 {[%emt 0:00:01]} 9. Na3 {[%emt 0:00:03]} Ng6 {[%emt 0:00:02]} 10. Be3 {[%emt 0:00:05]} Be7 {[%emt 0:00:09]} 11. Qd2 {[%emt 0:00:06]} f6 {[%emt 0:00:06]} 12. Nc4 {[%emt 0:00:06]} Be6 {[%emt 0:00:04]} 13. b3 {[%emt 0:00:06]} O-O {[%emt 0:00:03]} 14. Qc3 {[%emt 0:00:11]} b6 {[%emt 0:00:07]} 15. Nh2 {[%emt 0:00:17]} Bd8 {[%emt 0:00:16]} 16. Qd2 {[%emt 0:00:04]} Qd7 {[%emt 0:00:18]} 17. c3 {[%emt 0:00:22]} Bc7 {[%emt 0:00:01]} 18. Rad1 {[%emt 0:00:08]} Rad8 {[%emt 0:00:02]} 19. Qe2 {[%emt 0:00:06]} Qc8 {[%emt 0:00:22]} 20. Nf3 {[%emt 0:00:22]} Rf7 {[%emt 0:00:40]} 21. Rd2 {[%emt 0:00:13]} Ne7 {[%emt 0:00:29]} 22. Rb1 {[%emt 0:00:11]} g5 {[%emt 0:00:17]} 23. d4 {[%emt 0:00:22]} cxd4 {[%emt 0:00:15]} 24. cxd4 {[%emt 0:00:01]} g4 {[%emt 0:00:07]} 25. hxg4 {[%emt 0:00:08]} Bxg4 {[%emt 0:00:00]} 26. Rbd1 {[%emt 0:00:15]} Rg7 {[%emt 0:00:05]} 27. dxe5 {[%emt 0:00:10]} Rxd2 {[%emt 0:00:02]} 28. Rxd2 {[%emt 0:00:00]} fxe5 {[%emt 0:00:01]} 29. Bxb6 {[%emt 0:00:05]} Bxb6 {[%emt 0:00:04]} 30. Nxb6 {[%emt 0:00:01]} Qf8 {[%emt 0:00:01]} 31. Rd3 {[%emt 0:00:02]} Bh3 {[%emt 0:00:08]} 32. Nh4 {[%emt 0:00:01]} Bg4 {[%emt 0:00:04]} 33. Qe3 {[%emt 0:00:03]} Qf6 {[%emt 0:00:02]} 34. Rd8+ {[%emt 0:00:04]} Kf7 {[%emt 0:00:01]} 35. Nf5 {[%emt 0:00:03]} Bxf5 {[%emt 0:00:04]} 36. exf5 {[%emt 0:00:01]} Qxf5 {[%emt 0:00:02]} 37. Nc4 {[%emt 0:00:04]} Qb1+ {[%emt 0:00:12]} 38. Kh2 {[%emt 0:00:01]} Ng6 {[%emt 0:00:06]} 39. Nxe5+ {[%emt 0:00:01]} Nxe5 {[%emt 0:00:00]} 40. Qxe5 {[%emt 0:00:01]} Qg6 {[%emt 0:00:00]} 41. Rd7+ {[%emt 0:00:01]} Kf8 {[%emt 0:00:02]} 42. Qb8+ {[%emt 0:00:02]} Qe8 {[%emt 0:00:02]} 43. Qxe8+ {[%emt 0:00:01]} 1-0

[Event "EWIBCC 2019"]
[Site "Monte-Carlo"]
[Date "2019.11.29"]
[Round "5.17"]
[White "Janzelj, Lara"]
[Black "Unuk, Laura"]
[Result "1/2-1/2"]
[ECO "E12"]
[WhiteElo "2158"]
[BlackElo "2298"]
[Annotator "NA"]
[PlyCount "78"]
[EventDate "2019.11.29"]
[EventType "swiss"]
[EventCountry "MNC"]
[SourceTitle "playchess.com"]
[Source "ChessBase"]
[SourceQuality "1"]
[TimeControl "180+2"]

1. d4 {[%emt 0:00:00]} e6 {[%emt 0:00:00]} 2. c4 {[%emt 0:00:01]} Nf6 {[%emt 0:00:00]} 3. Nf3 {[%emt 0:00:01]} b6 {[%emt 0:00:01]} 4. a3 Bb7 {[%emt 0:00:01]} 5. Nc3 {[%emt 0:00:02]} d5 {[%emt 0:00:03]} 6. cxd5 {[%emt 0:00:01]} Nxd5 {[%emt 0:00:01]} 7. Qc2 {[%emt 0:00:01]} Nxc3 {[%emt 0:00:02]} 8. bxc3 {[%emt 0:00:02]} c5 {[%emt 0:00:01]} 9. e4 {[%emt 0:00:06]} Qc7 {[%emt 0:00:03]} 10. Bb5+ {[%emt 0:00:06]} Bc6 {[%emt 0:00:04]} 11. Bxc6+ {[%emt 0:00:02]} Nxc6 {[%emt 0:00:05]} 12. O-O {[%emt 0:00:02]} Rc8 {[%emt 0:00:24]} 13. d5 {[%emt 0:00:01]} Ne5 {[%emt 0:00:09]} 14. Nxe5 {[%emt 0:00:08]} Qxe5 {[%emt 0:00:02]} 15. Qa4+ {[%emt 0:00:03]} Kd8 {[%emt 0:00:10]} 16. Rd1 {[%emt 0:00:23]} Bd6 {[%emt 0:00:06]} 17. dxe6 {[%emt 0:00:21]} Qxh2+ {[%emt 0:00:10]} 18. Kf1 {[%emt 0:00:01]} fxe6 {[%emt 0:00:06]} 19. Bg5+ {[%emt 0:00:02]} Kc7 {[%emt 0:00:11]} 20. Qxa7+ {[%emt 0:00:03]} Kc6 {[%emt 0:00:01]} 21. Qa4+ {[%emt 0:00:16]} Kc7 {[%emt 0:00:07]} 22. e5 {[%emt 0:00:21]} Qxe5 {[%emt 0:00:18]} 23. Rxd6 {[%emt 0:00:09]} Qxd6 {[%emt 0:00:02]} 24. Rd1 {[%emt 0:00:09]} Ra8 {[%emt 0:00:31]} 25. Qg4 {[%emt 0:00:03]} Qc6 {[%emt 0:00:09]} 26. Bf4+ {[%emt 0:00:01]} Kb7 {[%emt 0:00:01]} 27. Qxg7+ {[%emt 0:00:03]} Ka6 {[%emt 0:00:01]} 28. Qg3 {[%emt 0:00:29]} Rhg8 {[%emt 0:00:02]} 29. Qd3+ {[%emt 0:00:01]} c4 {[%emt 0:00:02]} 30. Qc2 {[%emt 0:00:13]} Qxg2+ {[%emt 0:00:02]} 31. Ke2 {[%emt 0:00:01]} Qg4+ {[%emt 0:00:03]} 32. Ke3 {[%emt 0:00:11]} Qh3+ {[%emt 0:00:23]} 33. f3 {[%emt 0:00:04]} Qf5 {[%emt 0:00:01]} 34. Qa4+ {[%emt 0:00:01]} Qa5 {[%emt 0:00:02]} 35. Qxc4+ {[%emt 0:00:01]} Qb5 {[%emt 0:00:00]} 36. Qa2 {[%emt 0:00:20]} Rac8 {[%emt 0:00:02]} 37. Rd3 {[%emt 0:00:11]} Qc5+ {[%emt 0:00:07]} 38. Ke4 {[%emt 0:00:04]} Qf5+ {[%emt 0:00:19]} 39. Ke3 {[%emt 0:00:00]} e5 {[%emt 0:00:01]} 1/2-1/2

[Event "EWIBCC 2019"]
[Site "Monte-Carlo"]
[Date "2019.11.29"]
[Round "5.18"]
[White "Skuhala, Barbara"]
[Black "Novkovic, Julia"]
[Result "0-1"]
[ECO "C55"]
[WhiteElo "2109"]
[BlackElo "2161"]
[Annotator "ChessBase"]
[PlyCount "92"]
[EventDate "2019.11.29"]
[EventType "swiss"]
[EventCountry "MNC"]
[SourceTitle "playchess.com"]
[Source "ChessBase"]
[SourceQuality "1"]
[TimeControl "180+2"]

1. e4 {[%emt 0:00:00]} e5 {[%emt 0:00:00]} 2. Nf3 {[%emt 0:00:00]} Nc6 {[%emt 0:00:00]} 3. Bc4 {[%emt 0:00:02]} Nf6 {[%emt 0:00:01]} 4. d3 {[%emt 0:00:09]} Be7 {[%emt 0:00:02]} 5. O-O {[%emt 0:02:59]} d6 6. h3 {[%emt 0:00:00]} Na5 {[%emt 0:00:01]} 7. Bb3 {[%emt 0:00:00]} O-O {[%emt 0:00:02]} 8. c3 {[%emt 0:00:00]} Nxb3 {[%emt 0:00:02]} 9. axb3 {[%emt 0:00:00]} a6 {[%emt 0:00:13]} 10. Re1 {[%emt 0:00:00]} Re8 {[%emt 0:00:01]} 11. Nbd2 {[%emt 0:00:00]} h6 {[%emt 0:00:26]} 12. Nf1 {[%emt 0:00:14]} Bf8 13. Ng3 {[%emt 0:00:00]} g6 {[%emt 0:00:01]} 14. d4 {[%emt 0:00:00]} exd4 {[%emt 0:00:24]} 15. cxd4 {[%emt 0:00:00]} Bg7 {[%emt 0:00:10]} 16. Qd3 {[%emt 0:00:00]} Bd7 {[%emt 0:00:16]} 17. Bf4 {[%emt 0:00:00]} Bc6 {[%emt 0:00:03]} 18. d5 {[%emt 0:00:00]} Bb5 {[%emt 0:00:01]} 19. Qd2 {[%emt 0:00:00]} Nd7 {[%emt 0:00:07]} 20. Bxh6 {[%emt 0:00:00]} Bxh6 {[%emt 0:00:24]} 21. Qxh6 {[%emt 0:00:00]} Qf6 {[%emt 0:01:28]} 22. Rac1 {[%emt 0:00:00]} Nc5 {[%emt 0:00:00]} 23. Rc3 {[%emt 0:00:00]} a5 {[%emt 0:00:00]} 24. h4 {[%emt 0:00:00]} Qg7 {[%emt 0:00:00]} 25. Qd2 {[%emt 0:00:00]} Re7 {[%emt 0:00:00]} 26. h5 {[%emt 0:00:00]} Rae8 {[%emt 0:00:00]} 27. hxg6 {[%emt 0:00:00]} fxg6 {[%emt 0:00:00]} 28. e5 {[%emt 0:00:00]} b6 {[%emt 0:00:00]} 29. e6 {[%emt 0:00:00]} Na6 {[%emt 0:00:00]} 30. Qg5 {[%emt 0:00:00]} Nb4 {[%emt 0:00:00]} 31. Rd1 {[%emt 0:00:00]} Rf8 {[%emt 0:00:00]} 32. Nh4 {[%emt 0:00:00]} Rf6 {[%emt 0:00:00]} 33. Rf3 {[%emt 0:00:00]} Rxf3 {[%emt 0:00:00]} 34. gxf3 {[%emt 0:00:00]} Kh7 {[%emt 0:00:00]} 35. Kg2 {[%emt 0:00:00]} Be2 {[%emt 0:00:01]} 36. Rh1 {[%emt 0:00:00]} Kg8 {[%emt 0:00:04]} 37. Nxg6 {[%emt 0:00:00]} Re8 {[%emt 0:00:06]} 38. Rh8+ {[%emt 0:00:00]} Qxh8 {[%emt 0:00:02]} 39. Nxh8+ {[%emt 0:00:00]} Kxh8 {[%emt 0:00:00]} 40. Nf5 {[%emt 0:00:00]} Rg8 {[%emt 0:00:01]} 41. Qxg8+ Kxg8 {[%emt 0:00:01]} 42. Ne3 {[%emt 0:00:36]} Bb5 {[%emt 0:00:04]} 43. f4 {[%emt 0:00:01]} Kg7 {[%emt 0:00:01]} 44. f5 {[%emt 0:00:01]} Kf6 {[%emt 0:00:02]} 45. Ng4+ {[%emt 0:00:01]} Kxf5 {[%emt 0:00:02]} 46. Ne3+ {[%emt 0:00:02]} Ke4 {[%emt 0:00:02]} 0-1

[Event "EWIBCC 2019"]
[Site "Monte-Carlo"]
[Date "2019.11.29"]
[Round "5.19"]
[White "Petrova, Irina"]
[Black "Arakhamia-Grant, Ketevan"]
[Result "0-1"]
[ECO "C10"]
[WhiteElo "2109"]
[BlackElo "2376"]
[Annotator "NA"]
[PlyCount "107"]
[EventDate "2019.11.29"]
[EventType "swiss"]
[EventCountry "MNC"]
[SourceTitle "playchess.com"]
[Source "ChessBase"]
[SourceQuality "1"]
[TimeControl "180+2"]

1. d4 {[%emt 0:00:00]} Nf6 {[%emt 0:00:00]} 2. Bg5 {[%emt 0:00:00]} d5 {[%emt 0:00:06]} 3. Nc3 {[%emt 0:00:02]} Nbd7 {[%emt 0:00:03]} 4. Nf3 {[%emt 0:00:01]} e6 {[%emt 0:00:05]} 5. e4 {[%emt 0:00:02]} dxe4 {[%emt 0:00:04]} 6. Nxe4 {[%emt 0:00:01]} Be7 {[%emt 0:00:02]} 7. Bxf6 {[%emt 0:00:02]} Nxf6 {[%emt 0:00:04]} 8. Nxf6+ {[%emt 0:00:02]} Bxf6 {[%emt 0:00:01]} 9. c3 {[%emt 0:00:01]} O-O {[%emt 0:00:02]} 10. Bd3 {[%emt 0:00:02]} Bd7 {[%emt 0:00:09]} 11. Qc2 {[%emt 0:00:01]} h6 {[%emt 0:00:23]} 12. Be4 {[%emt 0:00:16]} Rb8 {[%emt 0:00:08]} 13. O-O {[%emt 0:00:07]} Qe7 {[%emt 0:00:30]} 14. Rad1 {[%emt 0:00:07]} Rfd8 {[%emt 0:00:04]} 15. Ne5 {[%emt 0:00:13]} Be8 {[%emt 0:00:00]} 16. f4 {[%emt 0:00:17]} c5 {[%emt 0:00:01]} 17. Qf2 {[%emt 0:01:08]} cxd4 {[%emt 0:00:40]} 18. Rxd4 {[%emt 0:00:03]} Bxe5 {[%emt 0:00:21]} 19. fxe5 {[%emt 0:00:06]} Qg5 {[%emt 0:00:16]} 20. Rxd8 {[%emt 0:00:05]} Rxd8 {[%emt 0:00:01]} 21. Bxb7 {[%emt 0:00:06]} Qxe5 {[%emt 0:00:24]} 22. Qxa7 {[%emt 0:00:14]} Rd2 {[%emt 0:00:11]} 23. Qa8 {[%emt 0:00:06]} Qc5+ {[%emt 0:00:03]} 24. Kh1 {[%emt 0:00:01]} Qb5 {[%emt 0:00:01]} 25. Rg1 {[%emt 0:00:05]} Rxb2 {[%emt 0:00:03]} 26. Bf3 {[%emt 0:00:05]} Qa4 {[%emt 0:00:05]} 27. Qd8 {[%emt 0:00:05]} Rxa2 {[%emt 0:00:03]} 28. h3 {[%emt 0:00:09]} Kh7 {[%emt 0:00:02]} 29. Qd3+ {[%emt 0:00:10]} g6 {[%emt 0:00:02]} 30. Bd1 {[%emt 0:00:10]} Qa6 {[%emt 0:00:02]} 31. Qf3 {[%emt 0:00:03]} Kg7 {[%emt 0:00:01]} 32. Rf1 {[%emt 0:00:03]} Ra1 {[%emt 0:00:03]} 33. Qf6+ {[%emt 0:00:03]} Kg8 {[%emt 0:00:01]} 34. Qf3 {[%emt 0:00:05]} Qb5 {[%emt 0:00:03]} 35. Be2 {[%emt 0:00:01]} Rxf1+ {[%emt 0:00:02]} 36. Qxf1 {[%emt 0:00:01]} Qc5 {[%emt 0:00:01]} 37. c4 {[%emt 0:00:02]} Bc6 {[%emt 0:00:01]} 38. Kh2 {[%emt 0:00:03]} Qe5+ {[%emt 0:00:02]} 39. Kh1 {[%emt 0:00:01]} Qe3 {[%emt 0:00:01]} 40. Kh2 {[%emt 0:00:02]} Kg7 {[%emt 0:00:02]} 41. Bd3 {[%emt 0:00:02]} Qe5+ {[%emt 0:00:03]} 42. Kh1 {[%emt 0:00:02]} Qd4 {[%emt 0:00:03]} 43. Kh2 {[%emt 0:00:03]} e5 {[%emt 0:00:01]} 44. Be2 {[%emt 0:00:04]} e4 {[%emt 0:00:01]} 45. Qb1 {[%emt 0:00:05]} Qe5+ {[%emt 0:00:02]} 46. Kh1 {[%emt 0:00:02]} h5 {[%emt 0:00:02]} 47. Qc1 {[%emt 0:00:01]} e3 {[%emt 0:00:02]} 48. c5 {[%emt 0:00:02]} Qg3 {[%emt 0:00:03]} 49. Qf1 {[%emt 0:00:06]} Qxh3+ {[%emt 0:00:08]} 50. Kg1 Qg3 {[%emt 0:00:02]} 51. Bc4 Qc7 {[%emt 0:00:02]} 52. Qe2 {[%emt 0:00:06]} Qe7 53. Kf1 {[%emt 0:00:02]} Qf6+ {[%emt 0:00:04]} 54. Ke1 0-1

[Event "EWIBCC 2019"]
[Site "Monte-Carlo"]
[Date "2019.11.29"]
[Round "5.20"]
[White "Solozhenkina, Elizaveta"]
[Black "Nicoara, Malina"]
[Result "1-0"]
[ECO "B03"]
[WhiteElo "2314"]
[BlackElo "2066"]
[Annotator "NA"]
[PlyCount "79"]
[EventDate "2019.11.29"]
[EventType "swiss"]
[EventCountry "MNC"]
[SourceTitle "playchess.com"]
[Source "ChessBase"]
[SourceQuality "1"]
[TimeControl "180+2"]

1. e4 {[%emt 0:00:00]} Nf6 {[%emt 0:00:00]} 2. e5 {[%emt 0:00:01]} Nd5 {[%emt 0:00:00]} 3. d4 {[%emt 0:00:01]} d6 {[%emt 0:00:00]} 4. c4 {[%emt 0:00:00]} Nb6 {[%emt 0:00:00]} 5. exd6 {[%emt 0:00:01]} cxd6 {[%emt 0:00:01]} 6. Nc3 {[%emt 0:00:02]} g6 {[%emt 0:00:01]} 7. Be3 {[%emt 0:00:02]} Bg7 {[%emt 0:00:00]} 8. Rc1 {[%emt 0:00:00]} O-O {[%emt 0:00:02]} 9. b3 {[%emt 0:00:01]} Nc6 {[%emt 0:00:01]} 10. d5 {[%emt 0:00:27]} Ne5 {[%emt 0:00:12]} 11. Be2 {[%emt 0:00:01]} a5 {[%emt 0:00:11]} 12. f4 {[%emt 0:00:30]} Ned7 {[%emt 0:00:01]} 13. Nf3 {[%emt 0:00:01]} Nc5 {[%emt 0:00:02]} 14. O-O {[%emt 0:00:05]} Bg4 {[%emt 0:00:02]} 15. h3 {[%emt 0:00:03]} Bxf3 {[%emt 0:00:01]} 16. Bxf3 {[%emt 0:00:02]} Nbd7 {[%emt 0:00:01]} 17. Bd4 {[%emt 0:00:08]} Re8 {[%emt 0:00:27]} 18. Re1 {[%emt 0:00:05]} e5 {[%emt 0:00:17]} 19. dxe6 {[%emt 0:00:06]} fxe6 {[%emt 0:00:03]} 20. Bxg7 {[%emt 0:00:05]} Kxg7 {[%emt 0:00:01]} 21. Qxd6 {[%emt 0:00:02]} Ra6 {[%emt 0:00:15]} 22. Qd4+ {[%emt 0:00:09]} Kg8 {[%emt 0:00:16]} 23. Rcd1 {[%emt 0:00:01]} Qc7 {[%emt 0:00:10]} 24. Nb5 {[%emt 0:00:06]} Qb6 {[%emt 0:00:06]} 25. Kh1 {[%emt 0:00:35]} Nf8 {[%emt 0:00:07]} 26. Re5 {[%emt 0:00:17]} Nfd7 {[%emt 0:00:19]} 27. Re2 {[%emt 0:00:06]} Raa8 {[%emt 0:00:04]} 28. Nd6 {[%emt 0:00:07]} Rf8 {[%emt 0:00:01]} 29. Nxb7 {[%emt 0:00:11]} Rac8 {[%emt 0:00:30]} 30. Nxc5 {[%emt 0:00:09]} Nxc5 {[%emt 0:00:02]} 31. Qd6 {[%emt 0:00:02]} Qb4 {[%emt 0:00:04]} 32. Qe5 {[%emt 0:00:08]} a4 {[%emt 0:00:05]} 33. Re3 {[%emt 0:00:08]} axb3 {[%emt 0:00:03]} 34. axb3 {[%emt 0:00:01]} Rf7 {[%emt 0:00:17]} 35. Bg4 {[%emt 0:00:03]} Re8 {[%emt 0:00:04]} 36. Rd6 {[%emt 0:00:12]} Qa3 {[%emt 0:00:10]} 37. Kh2 {[%emt 0:00:05]} Qa7 {[%emt 0:00:18]} 38. b4 {[%emt 0:00:04]} Nd7 {[%emt 0:00:00]} 39. Qc3 {[%emt 0:00:02]} Nf6 {[%emt 0:00:00]} 40. Bxe6 {[%emt 0:00:03]} 1-0